bitfinex-derivatives/quotes_ETHF0:USTF0_20250904
["timestamp","ask_amount","ask_price","bid_price","bid_amount"]
[1756962491691,0.3168,4378.1,4377.7,0.3183]
[1756962491992,0.5386,4377.8,4377.7,0.7414]
[1756962493198,0.314,4378.2,4377.7,0.7414]
[1756962493389,0.49612696,4378.1,4377.8,0.3285]
[1756962493594,0.2078,4378.1,4378.0,0.7519]
[1756962493787,0.1821274,4378.1,4378.0,0.8809]
[1756962493992,0.314,4378.5,4378.0,0.5524]
[1756962494202,0.38993965,4378.4,4378.3,0.7519]
[1756962494500,0.70393965,4378.4,4378.3,0.7519]
[1756962495001,0.38993965,4378.4,4378.3,0.7519]
[1756962495194,0.2078,4378.4,4378.3,0.7519]
[1756962495390,0.18205713,4378.4,4378.3,0.7519]
[1756962495596,0.70385713,4378.4,4378.3,0.7519]
[1756962496795,0.5218,4378.4,4378.3,0.7519]
[1756962498004,0.2078,4378.4,4378.3,0.7519]
[1756962498301,0.17,4378.9,4378.8,0.4234]
[1756962498497,0.8912,4378.9,4378.3,0.3285]
[1756962499399,0.484,4378.9,4378.8,0.5442]
[1756962499594,0.17,4378.9,4378.8,0.7519]
[1756962501209,0.17,4378.9,4378.8,4.7519]
[1756962501401,0.17,4378.9,4378.8,0.7519]
[1756962501610,0.17,4378.9,4378.8,0.98027]
[1756962501798,0.17,4378.9,4378.8,0.7519]
[1756962502003,0.439,4380.0,4378.9,0.3285]
[1756962502210,0.8426,4380.5,4380.4,0.2157]
[1756962502408,0.8426,4380.5,4380.4,0.5442]
[1756962503106,0.7212,4380.5,4380.4,0.7519]
[1756962503902,0.90300818,4380.5,4380.4,0.7519]
[1756962504207,0.7212,4380.5,4380.4,0.7519]
[1756962505206,0.2078,4380.5,4380.4,0.4234]
[1756962505509,0.7212,4380.5,4380.4,0.7519]
[1756962505709,0.8426,4380.5,4380.4,0.2157]
[1756962506514,0.7212,4380.5,4380.4,0.7519]
[1756962506707,0.7212,4380.5,4380.4,0.4234]
[1756962507610,0.7212,4380.2,4380.1,0.245]
[1756962508013,0.7212,4380.2,4380.1,0.4607]
[1756962508812,0.7212,4380.2,4380.1,0.7892]
[1756962509017,0.7212,4380.2,4380.1,0.9969]
[1756962509222,0.314,4380.4,4380.1,0.9969]
[1756962509429,0.2078,4380.4,4380.3,0.7519]
[1756962510426,0.7212,4380.4,4380.3,0.7519]
[1756962511425,0.7212,4380.4,4380.3,0.4234]
[1756962511924,0.314,4380.3,4380.1,0.245]
[1756962512426,0.314,4380.1,4380.0,0.4607]
[1756962512621,0.7212,4380.1,4380.0,0.4607]
[1756962514030,0.7212,4380.1,4380.0,0.245]
[1756962514426,0.7212,4380.1,4380.0,0.4607]
[1756962514628,0.7212,4380.1,4380.0,0.245]
[1756962515025,0.7212,4380.1,4379.5,0.3285]
[1756962515226,0.7212,4379.6,4379.5,0.4234]
[1756962515428,0.7212,4379.2,4379.1,0.7519]
[1756962515632,0.7212,4379.2,4379.1,0.9969]
[1756962515928,0.314,4380.4,4379.2,0.3285]
[1756962516128,0.90348261,4380.3,4380.2,0.2157]
[1756962516531,0.8426,4380.0,4379.9,0.245]
[1756962516731,0.8426,4380.0,4378.2,6.8064786]
[1756962516732,1.02488261,4380.0,4379.4,0.245]
[1756962516931,0.8426,4379.5,4379.4,0.245]
[1756962517136,1.024926,4379.5,4379.4,0.245]
[1756962517629,1.024926,4379.5,4379.4,0.4607]
[1756962517837,1.024926,4379.5,4379.4,0.9969]
[1756962519236,0.4354,4380.0,4379.4,0.9969]
[1756962519429,0.5218,4379.8,4379.7,0.4234]
[1756962519733,0.90361921,4379.8,4379.7,0.7519]
[1756962522633,0.49641921,4379.8,4379.7,0.7519]
[1756962522835,0.70211921,4379.8,4379.7,0.7519]
[1756962524431,0.91671921,4379.8,4379.7,0.7519]
[1756962525134,0.91671921,4379.8,4379.3,0.5489]
[1756962525339,0.7288,4379.4,4379.3,0.9659]
[1756962525534,0.91121921,4379.4,4379.3,0.9659]
[1756962526140,0.91147051,4379.4,4379.3,0.9659]
[1756962529039,0.91147051,4379.4,4379.0,32.901]
[1756962529335,0.7288,4378.6,4378.5,0.7209]
[1756962529535,0.91147051,4378.6,4378.5,0.455]
[1756962529941,0.91147051,4378.6,4378.5,0.9659]
[1756962531341,0.18267051,4378.6,4378.5,1.0818]
[1756962531643,0.2057,4378.8,4378.6,0.3039]
[1756962531841,0.7288,4378.8,4378.7,0.7209]
[1756962532037,0.3085,4378.7,4378.5,0.245]
[1756962532238,0.3085,4378.7,4378.6,0.21]
[1756962532442,0.91163499,4378.7,4378.5,0.245]
[1756962532634,0.60313499,4378.6,4378.5,0.245]
[1756962532837,0.91163499,4378.6,4378.5,0.245]
[1756962533038,0.91163499,4378.6,4378.5,0.455]
[1756962533237,0.91163499,4378.6,4378.5,0.7589]
[1756962533443,0.91163499,4378.6,4378.5,0.9659]
[1756962534044,0.91163499,4378.6,4378.5,0.662]
[1756962534345,0.91163499,4378.6,4378.5,0.245]
[1756962535542,0.91163499,4378.6,4378.5,0.455]
[1756962535938,0.91163499,4378.6,4378.5,0.9659]
[1756962536248,0.7288,4378.6,4378.5,0.9659]
[1756962536448,0.91166575,4378.6,4378.5,0.455]
[1756962536649,0.7288,4378.6,4378.5,0.455]
[1756962537144,0.91168176,4378.6,4378.5,0.455]
[1756962537346,0.91166768,4378.6,4378.5,0.455]
[1756962537850,0.5142,4377.9,4377.8,2.7192854]
[1756962538042,0.5142,4377.9,4377.8,3.1926954]
[1756962538242,0.122,4378.5,4377.8,2.9642854]
[1756962538442,0.91166678,4378.4,4378.3,0.7209]
[1756962538647,0.7288,4378.4,4378.3,0.9659]
[1756962539646,0.3085,4378.9,4378.3,0.9659]
[1756962539852,0.18287272,4378.8,4378.7,2.7192854]
[1756962540045,0.122,4380.5,4378.7,2.6603854]
[1756962540254,0.7288,4379.3,4379.2,0.417]
[1756962540446,0.91163771,4379.3,4379.2,0.245]
[1756962540952,0.49133771,4379.3,4379.2,0.9659]
[1756962541154,0.18283771,4379.3,4379.2,0.9659]
[1756962541446,0.38853771,4379.3,4379.2,0.9659]
[1756962541846,0.69703771,4379.3,4379.2,0.9659]
[1756962542245,0.18283771,4379.3,4379.2,2.9642854]
[1756962542449,0.3085,4379.7,4379.3,0.3039]
[1756962542649,0.122,4380.5,4379.5,0.8368]
[1756962542650,0.18295356,4379.6,4379.5,0.8368]
[1756962542851,0.2057,4380.2,4380.0,0.1159]
[1756962543057,0.2057,4380.2,4380.1,0.9659]
[1756962543247,0.69717666,4380.2,4380.1,0.9659]
[1756962543550,0.91177666,4380.2,4380.1,0.245]
[1756962543750,6.82996206,4380.2,4379.4,0.3039]
[1756962543954,0.7288,4379.4,4379.3,0.245]
[1756962544255,0.91177666,4379.4,4379.3,0.9659]
[1756962544457,0.38867666,4379.4,4379.3,0.9659]
[1756962545052,0.91177666,4379.4,4379.3,0.9659]
[1756962545254,0.91177666,4379.4,4379.3,0.662]
[1756962545454,0.91177666,4379.4,4379.3,0.245]
[1756962545656,0.91177666,4379.4,4378.9,0.3039]
[1756962545857,0.91177666,4379.3,4379.2,0.417]
[1756962546057,0.91177666,4379.3,4379.2,0.7209]
[1756962546558,0.38867666,4379.3,4379.2,2.7192854]
[1756962546858,0.7288,4379.2,4379.1,0.5139]
[1756962547052,0.122,4379.5,4379.4,0.417]
[1756962547053,0.3085,4379.5,4379.4,0.417]
[1756962547262,0.69721228,4379.5,4379.4,0.7209]
[1756962547460,0.91181228,4379.5,4379.4,0.7209]
[1756962547759,1.03381228,4379.5,4379.4,0.417]
[1756962548559,0.91181228,4379.5,4379.4,0.7209]
[1756962549763,0.91179935,4379.5,4379.4,0.7209]
[1756962550760,1.03379935,4379.5,4379.4,0.7209]
[1756962551462,0.91179935,4379.5,4379.4,0.7209]
[1756962552164,1.03259935,4379.5,4379.4,0.7209]
[1756962552364,1.03259935,4379.5,4379.4,0.417]
[1756962552663,1.03258816,4379.5,4379.4,0.21]
[1756962553054,1.03258816,4379.5,4379.4,0.7101]
[1756962553256,0.60328816,4379.5,4379.4,0.7101]
[1756962553860,0.91838816,4379.5,4379.4,0.7101]
[1756962554062,0.38868816,4379.5,4379.4,0.7101]
[1756962554963,0.38868816,4379.5,4378.6,0.4467]
[1756962554964,0.718,4378.7,4378.6,0.4467]
[1756962555149,0.90098816,4378.7,4378.6,0.2017]
[1756962555954,0.90098816,4378.7,4378.6,0.4946]
[1756962556149,0.90098816,4378.7,4378.6,0.7018]
[1756962556349,0.90098816,4378.7,4378.6,0.2017]
[1756962556562,0.90098816,4378.7,4378.5,0.245]
[1756962556862,0.90098816,4378.6,4378.1,0.2929]
[1756962557061,1.02178816,4378.5,4378.4,0.2017]
[1756962557363,1.02178816,4378.5,4378.4,0.244]
[1756962557665,1.02178816,4378.5,4378.3,0.244]
[1756962557865,0.58588816,4378.4,4378.3,0.244]
[1756962558054,0.90098816,4378.4,4378.3,0.244]
[1756962559260,0.3151,4378.3,4378.2,0.244]
[1756962559463,0.90098816,4378.3,4378.2,0.244]
[1756962560063,0.4029,4378.0,4377.9,2.92570586]
[1756962560260,1.02178816,4378.0,4377.9,0.87842046]
[1756962560458,0.3151,4377.9,4377.1,0.47830169]
[1756962560658,0.5182,4377.2,4377.1,0.88720169]
[1756962560858,0.5182,4377.2,4377.1,1.17211504]
[1756962561368,0.3151,4377.6,4377.1,1.35127332]
[1756962561569,0.70103771,4377.5,4377.4,0.4089]
[1756962561868,0.70103771,4377.5,4377.4,0.7018]
[1756962562061,0.70103771,4377.5,4377.4,2.7001854]
[1756962562062,0.18283771,4377.5,4377.4,2.7001854]
[1756962562361,0.718,4377.6,4377.5,0.7018]
[1756962562561,0.9007653,4377.6,4377.5,0.9458]
[1756962562962,0.9007653,4377.6,4377.5,0.6529]
[1756962563664,0.718,4377.6,4377.5,0.4457]
[1756962563861,0.90071579,4377.6,4377.5,0.4457]
[1756962564361,0.718,4377.6,4377.5,0.4457]
[1756962564573,0.9006319,4377.6,4377.5,0.4457]
[1756962565065,0.9006319,4377.6,4377.5,0.2017]
[1756962566463,0.90043892,4377.6,4377.5,0.2017]
[1756962567162,0.4029,4377.6,4377.1,2.22470044]
[1756962567360,0.2031,4376.7,4376.6,0.7018]
[1756962567568,0.2031,4376.7,4376.6,1.40173288]
[1756962567870,0.2031,4376.7,4376.6,1.17328288]
[1756962568064,0.4029,4376.7,4376.6,0.22748288]
[1756962568259,0.1208,4376.5,4375.6,0.2929]
[1756962568463,0.1208,4376.5,4375.4,2.05363056]
[1756962568464,0.2031,4375.9,4375.8,2.7001854]
[1756962569069,0.1208,4376.5,4375.8,2.63581539]
[1756962569266,0.718,4376.4,4376.3,0.2017]
[1756962569464,0.718,4376.4,4376.3,0.4457]
[1756962570967,0.718,4376.9,4376.8,0.2017]
[1756962571964,0.718,4376.9,4376.8,0.7018]
[1756962572574,0.2031,4376.9,4376.8,0.7018]
[1756962573160,0.5182,4376.9,4376.8,0.7018]
[1756962573870,0.2031,4376.9,4376.8,0.7018]
[1756962574076,0.718,4376.9,4376.8,0.7018]
[1756962575075,0.244,4378.3,4376.8,0.7018]
[1756962575076,0.3151,4377.3,4376.9,0.2929]
[1756962575272,0.5182,4377.0,4376.9,2.7001854]
[1756962575472,0.5182,4377.0,4376.9,2.33899508]
[1756962575766,0.718,4377.0,4376.9,2.33899508]
[1756962575972,0.3151,4377.3,4376.9,0.7018]
[1756962576172,0.5182,4377.3,4377.2,0.7018]
[1756962576574,0.718,4377.3,4377.2,0.7018]
[1756962576971,0.2031,4377.3,4377.2,0.7018]
[1756962578077,0.1208,4378.0,4377.2,0.7018]
[1756962578272,0.63134001,4377.9,4377.8,0.2017]
[1756962578577,0.718,4377.9,4377.8,0.2017]
[1756962579879,0.5182,4378.3,4378.2,0.4089]
[1756962580074,0.5182,4378.4,4378.3,0.7018]
[1756962580379,0.718,4378.4,4378.3,0.7018]
[1756962581078,0.5182,4378.4,4378.3,0.7018]
[1756962582369,0.718,4378.4,4378.3,0.7018]
[1756962582570,0.718,4378.4,4378.3,0.4089]
[1756962585078,0.718,4378.4,4378.3,0.7152]
[1756962585274,0.311,4378.9,4378.4,0.3063]
[1756962585477,0.3963,4378.8,4378.7,2.03679508]
[1756962585784,0.7073,4378.8,4378.7,2.34309508]
[1756962586282,0.3648,4380.0,4378.7,2.03679508]
[1756962586475,0.7073,4379.4,4379.3,0.2007]
[1756962586978,0.7073,4379.4,4379.3,2.34309508]
[1756962587474,0.7073,4379.4,4379.3,0.2007]
[1756962588678,0.7073,4379.4,4379.3,0.7059]
[1756962589578,0.7073,4379.4,4379.1,0.244]
[1756962590478,0.311,4379.3,4379.2,0.2007]
[1756962591079,0.7073,4379.3,4379.2,0.2007]
[1756962592585,0.7073,4379.3,4379.2,0.7059]
[1756962592984,0.7073,4379.3,4379.2,2.34309508]
[1756962593283,0.7073,4379.3,4379.2,0.7059]
[1756962593689,0.7073,4379.3,4379.2,0.2007]
[1756962593894,0.7073,4379.3,4379.2,0.7059]
[1756962594879,0.5163,4379.6,4379.5,0.8211]
[1756962595080,0.2053,4379.6,4379.5,2.70229508]
[1756962595314,0.311,4379.9,4379.5,2.70229508]
[1756962595315,0.311,4379.9,4379.5,2.39599508]
[1756962595586,0.5163,4379.9,4379.8,2.34309508]
[1756962595778,0.2053,4379.9,4379.8,0.7059]
[1756962595982,0.3963,4380.3,4380.2,0.3996]
[1756962596182,0.7073,4380.3,4380.2,0.7059]
[1756962596781,0.7073,4380.3,4380.2,0.9499]
[1756962597013,0.3963,4380.3,4380.2,0.9499]
[1756962597175,0.2053,4380.3,4380.2,0.9499]
[1756962597581,0.7073,4380.3,4380.2,0.9499]
[1756962597888,0.7073,4380.3,4380.2,0.4447]
[1756962598585,0.7073,4380.3,4380.2,0.244]
[1756962598886,0.7073,4380.3,4379.8,0.3063]
[1756962598887,0.311,4379.9,4379.1,0.3063]
[1756962599087,0.7073,4379.6,4379.5,2.34309508]
[1756962600281,0.311,4379.9,4379.6,0.3063]
[1756962600483,0.7073,4379.9,4379.8,0.7059]
[1756962601188,0.1185,4380.5,4379.8,0.7059]
[1756962601189,0.311,4380.2,4379.8,0.7059]
[1756962601389,0.3963,4380.5,4380.4,0.7059]
[1756962601584,0.3963,4380.5,4380.4,2.34309508]
[1756962601992,0.2053,4380.5,4380.4,2.34309508]
[1756962602203,0.8258,4380.5,4380.4,0.3996]
[1756962602389,0.8258,4380.5,4380.4,0.2007]
[1756962602688,0.7073,4380.5,4380.4,0.7059]
[1756962603085,0.5148,4380.5,4380.1,1.88119508]
[1756962603287,0.3963,4380.2,4380.1,2.08189508]
[1756962603488,0.3963,4379.9,4379.8,0.244]
[1756962603717,0.7073,4379.9,4379.8,0.244]
[1756962604488,0.7073,4379.2,4379.1,0.3996]
[1756962605094,0.2053,4379.2,4379.1,2.34309508]
[1756962605392,0.311,4379.9,4379.2,0.3063]
[1756962605587,0.5163,4379.5,4379.4,2.34309508]
[1756962605798,0.7073,4379.5,4379.4,0.7059]
[1756962606186,0.2053,4379.5,4379.4,0.7059]
[1756962606897,0.311,4379.8,4379.4,0.7059]
[1756962607097,0.5163,4379.8,4379.7,0.3996]
[1756962607288,0.5163,4379.8,4379.7,0.7059]
[1756962607597,0.7073,4379.8,4379.7,0.7059]
[1756962607785,0.311,4380.2,4379.7,0.9489]
[1756962607990,0.7073,4380.4,4380.3,0.2007]
[1756962609191,0.5148,4380.0,4379.9,0.507]
[1756962609397,0.8258,4380.0,4379.5,0.3063]
[1756962609595,0.311,4379.6,4379.0,0.3063]
[1756962609795,0.7073,4379.1,4379.0,0.3996]
[1756962610191,0.7073,4379.1,4378.9,0.243]
[1756962610192,0.5148,4379.0,4378.9,0.243]
[1756962610397,0.8258,4379.0,4378.9,0.243]
[1756962610795,0.8258,4379.0,4378.6,0.243]
[1756962612597,0.5148,4379.0,4378.9,0.2089]
[1756962613097,0.8227,4379.0,4378.9,0.2089]
[1756962613487,0.8227,4379.0,4378.6,0.243]
[1756962613986,0.3079,4378.9,4378.1,0.3005]
[1756962614191,0.5148,4379.0,4378.1,0.9527]
[1756962614192,0.7017,4378.2,4378.1,0.9527]
[1756962614988,0.3079,4378.9,4378.2,0.3005]
[1756962615188,0.7017,4378.9,4378.8,0.2089]
[1756962615493,0.7017,4378.9,4378.5,0.3005]
[1756962615697,0.3079,4378.8,4378.1,0.5435]
[1756962616592,0.3079,4378.9,4378.2,0.3005]
[1756962616792,0.1955,4378.3,4378.2,0.7097]
[1756962616992,0.5034,4378.3,4378.2,0.7097]
[1756962617193,0.3079,4378.9,4378.2,0.4092]
[1756962617392,0.3079,4378.9,4378.3,0.3005]
[1756962617593,0.1955,4378.4,4378.3,0.7097]
[1756962617794,0.7017,4378.4,4378.3,0.7097]
[1756962619393,0.7017,4378.4,4378.3,0.2089]
[1756962619594,0.7017,4378.4,4378.2,0.243]
[1756962619797,0.3938,4378.3,4378.2,0.2089]
[1756962620002,0.3938,4378.3,4377.1,5.88983462]
[1756962620003,0.7017,4378.3,4378.0,0.243]
[1756962620702,0.7017,4378.3,4378.2,0.5094]
[1756962620902,0.7017,4378.3,4378.2,0.7097]
[1756962622313,0.7017,4378.3,4378.2,0.4092]
[1756962622804,0.7017,4378.3,4378.2,0.7097]
[1756962623907,0.7017,4378.3,4378.2,0.4092]
[1756962624310,0.7017,4378.3,4378.2,0.2089]
[1756962626807,0.3079,4378.2,4377.5,0.3005]
[1756962627003,0.7017,4377.6,4377.5,0.9527]
[1756962627898,0.7017,4377.6,4377.5,0.6522]
[1756962628403,0.7017,4377.6,4377.5,0.9527]
[1756962629617,0.7017,4377.6,4377.5,0.4519]
[1756962629912,0.7017,4377.6,4377.5,0.243]
[1756962630901,0.7017,4377.6,4377.5,0.9527]
[1756962633413,0.7017,4377.6,4377.5,2.58946262]
[1756962633711,0.7017,4377.9,4377.8,0.7097]
[1756962633904,0.7017,4377.9,4377.8,2.04596262]
[1756962634110,0.7017,4377.9,4377.8,1.84566262]
[1756962634507,0.7017,4377.9,4377.6,1.63676262]
[1756962634709,0.3938,4377.7,4377.6,1.84566262]
[1756962634913,0.89456583,4377.7,4377.6,1.84566262]
[1756962635412,0.89456583,4377.7,4377.6,0.2089]
[1756962636116,0.89456583,4377.7,4377.6,0.5094]
[1756962636413,0.89456583,4377.7,4377.6,0.7097]
[1756962638212,0.19286583,4377.7,4377.6,0.7097]
[1756962638614,0.69626583,4377.7,4377.6,0.7097]
[1756962639418,0.89456583,4377.7,4377.6,0.4519]
[1756962639718,0.89456583,4377.7,4377.6,0.7524]
[1756962640120,0.89456583,4377.7,4377.6,0.4519]
[1756962640424,0.89456583,4377.7,4377.2,0.3005]
[1756962640616,0.5034,4377.0,4376.9,33.1915]
[1756962640821,0.1955,4377.0,4376.9,33.4345]
[1756962641321,0.5034,4377.0,4376.9,33.4345]
[1756962641820,1.01028325,4377.0,4376.9,0.243]
[1756962642237,1.01028325,4377.0,4376.6,0.3005]
[1756962642409,0.6857,4376.7,4376.6,0.7375]
[1756962642616,0.87888325,4376.7,4376.6,0.7375]
[1756962642818,0.87888325,4376.7,4376.6,0.437]
[1756962643136,0.87888325,4376.7,4376.6,0.194]
[1756962643521,0.87888325,4376.7,4376.2,0.2996]
[1756962643823,0.6857,4376.2,4376.1,0.9325]
[1756962644124,0.87888325,4376.2,4376.1,0.9325]
[1756962644720,0.87888325,4376.2,4376.1,0.6895]
[1756962644919,0.87888325,4376.2,4376.0,0.243]
[1756962645120,0.59038325,4376.1,4376.0,0.243]
[1756962645324,0.87888325,4376.1,4376.0,0.243]
[1756962645721,0.87888325,4376.1,4376.0,0.437]
[1756962645926,0.19318325,4376.1,4376.0,1.0489]
[1756962646360,0.1142,4376.3,4376.2,0.6895]
[1756962646523,0.2885,4376.9,4376.2,0.6895]
[1756962646719,0.19293606,4376.8,4376.3,0.2996]
[1756962647022,0.67353606,4376.7,4376.6,0.6895]
[1756962647222,0.38503606,4376.7,4376.6,0.6895]
[1756962650723,0.67353606,4376.7,4376.6,0.6895]
[1756962653832,0.87863606,4376.7,4376.6,0.6895]
[1756962654226,0.87863606,4376.7,4376.6,0.194]
[1756962654530,0.87880673,4376.7,4376.6,0.436]
[1756962654731,0.87880673,4376.7,4376.6,0.7356]
[1756962655933,0.87880673,4376.7,4376.6,0.242]
[1756962656532,0.87880673,4376.7,4376.6,0.4936]
[1756962656832,0.87880673,4376.7,4376.6,0.6895]
[1756962657230,0.87880673,4376.7,4376.6,0.3899]
[1756962658531,0.87880673,4376.7,4376.6,0.6895]
[1756962658927,0.87880673,4376.7,4376.6,0.194]
[1756962659635,0.87880673,4376.7,4376.6,0.4936]
[1756962660130,0.87880673,4376.7,4376.6,0.6895]
[1756962660131,0.19310673,4376.7,4376.6,0.6895]
[1756962660338,0.1142,4376.9,4376.6,4.91799]
[1756962660530,0.1142,4376.9,4376.8,0.3899]
[1756962660736,0.2885,4377.6,4376.8,0.6895]
[1756962661037,0.2885,4377.6,4376.6,4.0]
[1756962661038,0.38532762,4377.5,4377.4,0.3899]
[1756962661235,0.87892762,4377.5,4377.4,0.6895]
[1756962662741,0.19322762,4377.5,4377.4,0.6895]
[1756962663944,0.87892762,4377.5,4377.4,0.6895]
[1756962664142,1.00352762,4377.5,4377.4,0.6895]
[1756962665844,1.00352762,4377.5,4377.0,0.2996]
[1756962666151,0.6857,4377.1,4377.0,0.436]
[1756962666350,0.87892762,4377.1,4377.0,0.436]
[1756962666738,0.38532762,4377.1,4377.0,1.0479]
[1756962667048,0.19322762,4377.1,4377.0,1.0479]
[1756962668549,0.38532762,4377.1,4377.0,1.0479]
[1756962668750,0.87892762,4377.1,4377.0,0.9315]
[1756962669149,0.19322762,4377.1,4377.0,1.0479]
[1756962669360,0.19322762,4377.1,4377.0,0.8059]
[1756962669551,0.19322762,4377.1,4377.0,1.0479]
[1756962672550,0.1142,4377.7,4377.0,1.0479]
[1756962672750,0.1142,4377.7,4377.6,0.6981]
[1756962672943,0.1246,4378.5,4377.6,0.9401]
[1756962673147,0.6962,4377.7,4377.6,0.9401]
[1756962673376,0.6962,4377.7,4377.4,0.242]
[1756962673571,0.1235,4378.0,4377.4,0.242]
[1756962673572,0.8197,4377.5,4377.4,0.203]
[1756962673759,0.8197,4377.5,4377.4,0.445]
[1756962674447,0.8197,4377.5,4377.3,0.2989]
[1756962674448,0.8197,4377.5,4377.3,0.242]
[1756962674646,0.1235,4377.0,4376.3,2.05363056]
[1756962674851,0.6962,4376.7,4376.6,0.9401]
[1756962675555,0.6962,4376.7,4376.6,0.6981]
[1756962675757,0.6962,4376.7,4376.6,0.9401]
[1756962675957,0.6962,4376.7,4376.6,0.203]
[1756962676145,0.4229,4376.5,4376.4,0.242]
[1756962676345,0.8197,4376.5,4376.4,0.242]
[1756962677953,0.5203,4376.5,4376.4,0.203]
[1756962678659,0.8197,4376.5,4376.4,0.203]
[1756962678959,0.6962,4376.5,4376.4,0.6981]
[1756962679151,0.1235,4377.0,4376.9,0.6981]
[1756962679152,0.5203,4377.0,4376.9,0.6981]
[1756962679351,0.3968,4377.0,4376.9,0.6981]
[1756962679659,0.6962,4377.0,4376.9,0.6981]
[1756962680157,0.1966,4377.0,4376.9,0.6981]
[1756962680560,0.8197,4377.0,4376.9,0.6981]
[1756962682163,0.6962,4377.0,4376.9,0.6981]
[1756962683059,0.2994,4377.4,4377.0,0.4253]
[1756962683357,0.8197,4377.5,4376.8,0.5409]
[1756962683555,0.3968,4376.9,4376.8,0.7439]
[1756962683755,0.6962,4376.9,4376.8,0.9401]
[1756962684457,0.6962,4376.9,4376.8,0.242]
[1756962684660,0.88644294,4376.9,4376.4,0.2989]
[1756962684868,0.8197,4376.5,4376.4,0.5019]
[1756962685058,0.8197,4376.5,4376.4,0.7439]
[1756962685655,0.8197,4376.5,4376.4,0.9401]
[1756962685956,0.6962,4376.5,4376.4,0.9401]
[1756962686868,0.1235,4377.0,4376.9,0.6981]
[1756962686869,0.496,4377.0,4376.9,0.6981]
[1756962687157,1.00997192,4377.0,4376.9,0.3992]
[1756962687358,0.48967192,4377.0,4376.9,0.6981]
[1756962687559,0.19027192,4377.0,4376.9,0.6981]
[1756962688954,0.1142,4377.2,4376.9,0.6981]
[1756962689166,0.1142,4377.2,4376.5,7.35220732]
[1756962689167,0.19028128,4377.1,4377.0,1.0655]
[1756962691160,0.6195,4378.5,4378.4,0.3992]
[1756962691355,0.496,4378.5,4378.4,0.9391]
[1756962691555,0.1966,4378.9,4378.8,0.3992]
[1756962691758,0.6962,4378.9,4378.1,0.2989]
[1756962692059,0.3968,4378.3,4378.2,0.444]
[1756962692369,0.6962,4378.3,4378.2,0.444]
[1756962692558,0.6962,4378.3,4378.2,0.9391]
[1756962693458,0.6962,4378.3,4378.2,0.444]
[1756962693659,0.2994,4378.2,4377.6,7.11356732]
[1756962693857,0.1235,4378.5,4377.8,0.2989]
[1756962693858,0.2994,4378.1,4377.8,0.2989]
[1756962694055,0.2994,4378.4,4378.3,0.1962]
[1756962694261,0.496,4378.4,4378.3,0.9391]
[1756962694661,0.6962,4378.4,4378.3,0.6402]
[1756962695165,0.6962,4378.4,4377.9,0.2989]
[1756962695395,0.6962,4378.4,4377.5,0.3646]
[1756962695667,0.6962,4378.4,4377.6,0.241]
[1756962695965,0.6962,4378.4,4377.7,0.2989]
[1756962697461,0.3968,4378.4,4377.7,6.18876056]
[1756962697664,0.6962,4378.3,4378.2,0.203]
[1756962698167,0.6962,4378.3,4378.2,0.444]
[1756962698866,0.6962,4378.3,4378.2,0.3992]
[1756962699067,0.6962,4378.3,4378.2,0.6402]
[1756962699259,0.6962,4378.3,4378.2,0.9391]
[1756962700356,0.6962,4378.3,4378.2,0.6402]
[1756962700554,0.6962,4378.3,4378.2,0.3992]
[1756962700760,0.6962,4378.3,4378.2,0.6402]
[1756962701467,0.6962,4378.3,4378.2,0.3992]
[1756962701768,0.6962,4378.3,4378.2,0.6402]
[1756962703370,0.6962,4378.3,4378.2,0.9514]
[1756962703668,0.496,4378.3,4378.2,0.9514]
[1756962703972,0.7134,4378.9,4378.8,0.1906]
[1756962704169,0.7134,4378.9,4378.8,0.6358]
[1756962704769,0.5118,4377.9,4377.8,0.88573112]
[1756962704971,0.7134,4377.9,4377.8,0.3948]
[1756962705169,0.633,4377.5,4377.4,0.1906]
[1756962705467,0.1177,4378.0,4377.2,5.88986056]
[1756962705668,0.3137,4378.0,4377.9,0.706]
[1756962705864,0.3137,4378.0,4377.9,0.947]
[1756962706571,0.5118,4378.0,4377.9,0.947]
[1756962706964,0.8311,4378.0,4377.9,0.947]
[1756962707166,0.3137,4378.4,4378.3,0.3948]
[1756962707361,0.5118,4378.4,4378.3,0.947]
[1756962707664,0.3137,4378.9,4378.4,0.3112]
[1756962707969,0.3137,4378.9,4378.8,0.3948]
[1756962707970,0.7134,4378.9,4378.8,0.3948]
[1756962708168,0.7134,4378.9,4378.8,0.947]
[1756962708571,0.5118,4378.9,4378.8,0.947]
[1756962708774,0.3137,4378.9,4378.8,0.947]
[1756962709075,0.1981,4378.9,4378.8,0.947]
[1756962709266,0.5118,4378.9,4378.8,0.947]
[1756962710373,0.7134,4378.9,4378.8,0.6358]
[1756962711263,0.7134,4378.9,4378.8,0.947]
[1756962712573,0.5118,4378.9,4378.8,0.947]
[1756962713368,0.5118,4378.9,4378.3,0.3112]
[1756962713369,0.7134,4378.9,4378.3,0.3112]
[1756962713569,0.1177,4379.0,4377.0,3.39357259]
[1756962713570,0.8311,4378.5,4378.4,0.1906]
[1756962713871,0.8311,4378.5,4378.4,0.4316]
[1756962715273,0.8311,4378.5,4378.4,0.241]
[1756962715866,0.8311,4378.5,4378.4,0.4316]
[1756962716375,0.8311,4378.5,4378.4,0.6358]
[1756962717170,0.8311,4378.5,4378.4,0.241]
[1756962717375,0.8311,4378.5,4378.4,0.4316]
[1756962717575,0.5118,4378.5,4378.4,0.947]
[1756962719471,0.8311,4378.5,4378.4,0.6358]